fUST/lending_fUST_20250811
["ID","MTS","AMOUNT","RATE_DAILY","PERIOD"]
[378441839,1754861252123,-500.0,0.00020142,2]
[378441840,1754861252151,-500.0,0.00020142,2]
[378441841,1754861252177,-460.0,0.00020142,2]
[378441842,1754861252205,-200.09565698,0.00020142,2]
[378441843,1754861252229,-460.0,0.00020142,2]
[378441844,1754861252256,-460.0,0.00020142,2]
[378441845,1754861252285,-460.0,0.00020142,2]
[378441846,1754861252310,-299.528462,0.00020142,2]
[378441847,1754861252333,-460.0,0.00020142,2]
[378441848,1754861252360,-460.0,0.00020142,2]
[378441849,1754861252385,-460.0,0.00020142,2]
[378441850,1754861252410,-481.17404608,0.00020142,2]
[378441851,1754861252437,-460.0,0.00020142,2]
[378441852,1754861252462,-460.0,0.00020142,2]
[378441853,1754861252491,-460.0,0.00020142,2]
[378441854,1754861252521,-254.31827841,0.00020142,2]
[378441855,1754861252549,-96.70705633,0.00020142,2]
[378441856,1754861253840,-195.92608958,0.00020142,2]
[378441857,1754861255993,-162.50916648,0.00020142,2]
[378441858,1754861261029,-4.85768761,0.00020142,2]
[378441859,1754861261057,-292.00758113,0.00020142,2]
[378441860,1754861263612,-167.99241887,0.00020142,2]
[378441861,1754861263642,-138.28630806,0.00020142,2]
[378441862,1754861270715,-205.45888616,0.00020142,2]
[378441863,1754861277262,-164.35610885,0.00020142,2]
[378441864,1754861286660,-297.30091409,0.00020141,2]
[378441865,1754861292785,-2.69908591,0.00020141,2]
[378441866,1754861292808,-307.1041878,0.00020142,2]
[378441867,1754861301514,-152.8958122,0.00020142,2]
[378441868,1754861301542,-77.19475339,0.00020142,2]
[378441869,1754861303152,-209.7852078,0.00020142,2]
[378441870,1754861309724,-173.02003881,0.00020142,2]
[378441871,1754861309748,-142.76915092,0.00020142,2]
[378441873,1754861312288,-187.39134532,0.00020142,2]
[378441875,1754861318210,-129.83950376,0.00020142,2]
[378441876,1754861318234,-164.70161008,0.00020142,2]
[378441877,1754861319968,-218.52548466,0.00020142,2]
[378441880,1754861322712,2999.99999991,0.00026,30]
[378441881,1754861324810,-76.77290526,0.00020142,2]
[378441882,1754861324833,-100.58791908,0.00020142,2]
[378441883,1754861326362,-213.79509063,0.00020142,2]
[378441886,1754861334301,-145.61699029,0.00020142,2]
[378441887,1754861334329,-119.06652821,0.00020142,2]
[378441888,1754861341644,-340.93347179,0.00020142,2]
[378441889,1754861341668,-8.62016554,0.00020142,2]
[378441890,1754861344614,-272.99329005,0.00020141,2]
[378441891,1754861349222,-27.00670995,0.00020141,2]
[378441892,1754861349247,-149.4041145,0.00020142,2]
[378441894,1754861351281,-251.29,0.00020142,2]
[378441895,1754861357552,-50.68571996,0.00020142,2]
[378441896,1754861357577,-336.08314916,0.00020142,2]
[378441902,1754861365360,-123.91685084,0.00020142,2]
[378441903,1754861365384,-109.30841015,0.00020142,2]
[378441904,1754861367621,-441.21158985,0.00020142,2]
[378441905,1754861367644,-121.78355117,0.00020142,2]
[378441906,1754861374828,-209.58761311,0.00020142,2]
[378441907,1754861380807,-128.62883572,0.00020142,2]
[378441908,1754861380830,-22.37116428,0.00020142,2]
[378441909,1754861382772,-157.95899934,0.00020142,2]
[378441913,1754861394160,-279.66983638,0.00020142,2]
[378441914,1754861394183,-82.13511118,0.00020142,2]
[378441915,1754861398076,-241.62026293,0.00020142,2]
[378441916,1754861399662,-136.24462589,0.00020142,2]
[378441917,1754861399687,-305.52074233,0.00020142,2]
[378441918,1754861406902,-177.76506674,0.00020141,2]
[378441922,1754861413107,-122.23493326,0.00020141,2]
[378441923,1754861413129,-120.17726524,0.00020141,2]
[378441924,1754861415069,-179.82273476,0.00020141,2]
[378441925,1754861415091,-41.18241444,0.00020141,2]
[378441926,1754861420024,160.0,0.00019956,2]
[378441927,1754861424125,-183.73718769,0.00020141,2]
[378441928,1754861430984,-75.08039787,0.00020141,2]
[378441929,1754861431008,-85.93566429,0.00020142,2]
[378441946,1754861436230,221.0051492,0.00019956,2]
[378441947,1754861437053,-68.54359338,0.00020142,2]
[378441948,1754861437063,-177.19317094,0.00020142,2]
[378441949,1754861437072,-460.0,0.00020142,2]
[378441950,1754861437081,-460.0,0.00020142,2]
[378441951,1754861437090,-219.49367038,0.00020142,2]
[378441952,1754861437102,-240.50632962,0.00020142,2]
[378441953,1754861437111,-189.31547239,0.00020142,2]
[378441954,1754861437122,-173.10169479,0.00020142,2]
[378441955,1754861437132,-460.0,0.00020142,2]
[378441956,1754861437141,-613.13,0.00020142,2]
[378441957,1754861437152,-300.52130155,0.00020142,2]
[378441992,1754861438208,-159.47869845,0.00020142,2]
[378441994,1754861438217,-460.0,0.00020142,2]
[378441996,1754861438227,-460.0,0.00020142,2]
[378441998,1754861438236,-460.0,0.00020142,2]
[378442000,1754861438246,-460.0,0.00020142,2]
[378442003,1754861438255,-460.0,0.00020142,2]
[378442005,1754861438265,-348.13539469,0.00020142,2]
[378442007,1754861438275,-460.0,0.00020142,2]
[378442009,1754861438284,-204.92985707,0.00020142,2]
[378442011,1754861438293,-460.0,0.00020142,2]
[378442013,1754861438302,-460.0,0.00020142,2]
[378442015,1754861438311,-455.60174112,0.00020142,2]
[378442017,1754861438320,-460.0,0.00020143,2]
[378442019,1754861438330,-465.55883208,0.00020143,2]
[378442036,1754861438475,-460.0,0.00020143,2]
[378442039,1754861438485,-460.0,0.00020143,2]
[378442041,1754861438496,-460.0,0.00020143,2]
[378442042,1754861438506,-460.0,0.00020143,2]
[378442045,1754861438516,-460.0,0.00020143,2]
[378442047,1754861438526,-460.0,0.00020143,2]
[378442048,1754861438539,-460.0,0.00020143,2]
[378442050,1754861438548,-460.0,0.00020143,2]
[378442052,1754861438558,-460.0,0.00020143,2]
[378442054,1754861438567,-460.0,0.00020143,2]
[378442056,1754861438576,-460.0,0.00020143,2]
[378442058,1754861438585,-460.0,0.00020143,2]
[378442060,1754861438595,-217.59298428,0.00020143,2]
[378442062,1754861438604,-460.0,0.00020143,2]
[378442064,1754861438614,-460.0,0.00020143,2]
[378442066,1754861438623,-460.0,0.00020143,2]
[378442068,1754861438632,-460.0,0.00020143,2]
[378442070,1754861438641,-460.0,0.00020143,2]
[378442072,1754861438652,-460.0,0.00020143,2]
[378442074,1754861438661,-460.0,0.00020143,2]
[378442076,1754861438670,-460.0,0.00020143,2]
[378442078,1754861438679,-460.0,0.00020143,2]
[378442080,1754861438688,-460.0,0.00020143,2]
[378442082,1754861438698,-460.0,0.00020143,2]
[378442084,1754861438707,-498.57586483,0.00020143,2]
[378442086,1754861438716,-460.0,0.00020143,2]
[378442088,1754861438725,-158.508501,0.00020187,2]
[378442090,1754861438735,-613.5982381,0.00020416,2]
[378442092,1754861438748,-2.63224551,0.00020416,2]
[378442094,1754861438757,-460.0,0.00020416,2]
[378442096,1754861438766,-613.13,0.00020416,2]
[378442098,1754861438777,-460.0,0.00020416,2]
[378442100,1754861438786,-460.0,0.00020416,2]
[378442102,1754861438795,-460.0,0.00020416,2]
[378442104,1754861438804,-460.0,0.00020416,2]
[378442106,1754861438814,-51.56255168,0.00020416,2]
[378442109,1754861438825,-240.56744832,0.00020416,2]
[378442111,1754861438834,-460.0,0.00020417,2]
[378442113,1754861438843,-205.405482,0.00020482,2]
[378442115,1754861438852,-8950.8143168,0.00020489,2]
[378442119,1754861438879,-238.85798671,0.00020489,2]
[378442760,1754861445678,-15710.32769649,0.00020489,2]
[378442762,1754861445687,-1514.9980713,0.0002059,2]
[378442763,1754861445697,-460.0,0.0002069,2]
[378442764,1754861445707,-613.13,0.0002069,2]
[378442766,1754861445717,-460.0,0.0002069,2]
[378442767,1754861445726,-460.0,0.0002069,2]
[378442769,1754861445736,-460.0,0.00020691,2]
[378442770,1754861445746,-250.0,0.00020874,2]
[378442771,1754861445755,-259.46833236,0.00020964,2]
[378442772,1754861445764,-613.13,0.00020964,2]
[378442773,1754861445773,-460.0,0.00020964,2]
[378442774,1754861445783,-460.0,0.00020964,2]
[378442775,1754861445793,-200.0,0.00021148,15]
[378442776,1754861445802,-300.0,0.00021148,15]
[378442777,1754861445811,-613.13,0.00021238,2]
[378442778,1754861445821,-460.0,0.00021238,2]
[378442779,1754861445830,-460.0,0.00021238,2]
[378442780,1754861445839,-231.96268195,0.00021463,2]
[378442781,1754861445849,-160.0,0.00021463,2]
[378442782,1754861445858,-216.64838636,0.00021463,2]
[378442783,1754861445868,-843.0869304,0.00021463,2]
[378442784,1754861445877,-461.62346162,0.00021463,2]
[378442785,1754861445886,-160.0,0.00021463,2]
[378442786,1754861445896,-500.0,0.00021492,2]
[378442787,1754861445905,-613.13,0.00021512,2]
[378442788,1754861445917,-460.0,0.00021512,2]
[378442789,1754861445926,-460.0,0.00021512,2]
[378442790,1754861445936,-613.13,0.00021786,2]
[378442791,1754861445945,-232.66,0.00021786,2]
[378442792,1754861445955,-460.0,0.00021786,2]
[378442793,1754861445964,-160.0,0.000219,2]
[378442794,1754861445975,-295.0,0.00021996,2]
[378442795,1754861445985,-1715.66113799,0.00022,2]
[378442797,1754861446100,-154.0,0.00022,2]
[378442798,1754861446113,-1088.43,0.00022,2]
[378442799,1754861446123,-613.13,0.0002206,2]
[378442800,1754861446133,-460.0,0.0002206,2]
[378442801,1754861446142,-1514.99807124,0.00022124,2]
[378442802,1754861446152,-307.63192798,0.00022178,2]
[378442803,1754861446164,-1229.29718421,0.00022178,2]
[378442804,1754861446173,-154.0,0.00022192,7]
[378442806,1754861446183,-816.5,0.00022199,2]
[378442807,1754861446192,-613.13,0.00022334,2]
[378442808,1754861446201,-460.0,0.00022334,2]
[378442809,1754861446211,-295.0,0.00022346,2]
[378442810,1754861446220,-260.0,0.00022448,2]
[378442811,1754861446230,-1827.76,0.00022479,10]
[378442812,1754861446239,-1596.76,0.00022479,10]
[378442813,1754861446250,-1374.0,0.00022479,10]
[378442814,1754861446259,-1145.0,0.00022479,10]
[378442815,1754861446268,-869.72612927,0.00022489,2]
[378442816,1754861446278,-6925.73,0.00022489,2]
[378442817,1754861446287,-13124.77530996,0.00022489,2]
[378442818,1754861446299,-8809.72402557,0.00022489,2]
[378442819,1754861446311,-1253.33036194,0.00022489,2]
[378442825,1754861447124,2077.1222943,0.000199,2]
[378442826,1754861451791,-356.5101149,0.00020142,2]
[378442827,1754861453915,-110.15507737,0.00020142,2]
[378442828,1754861453938,-85.7317929,0.00020142,2]
[378442829,1754861455335,-206.10990735,0.00020142,2]
[378442830,1754861459232,5000.0,0.00019956,2]
[378442831,1754861461510,-168.15829975,0.00020142,2]
[378442832,1754861461532,-34.84251225,0.00020142,2]
[378442833,1754861464065,-300.0,0.00020141,2]
[378442834,1754861464087,-2.50162471,0.00020142,2]
[378442835,1754861468043,-207.37198508,0.00020142,2]
[378442836,1754861470009,-215.28387796,0.00020142,2]
[378442837,1754861470034,-23.82314016,0.00020142,2]
[378442838,1754861476106,-301.51757118,0.00020142,2]
[378442839,1754861478773,-134.65928866,0.00020142,2]
[378442840,1754861478799,-37.6966981,0.00020142,2]
[378442841,1754861485461,-205.86275441,0.00020142,2]
[378442842,1754861486879,-216.44054749,0.00020142,2]
[378442843,1754861486900,-89.17829388,0.00020142,2]
[378442844,1754861493393,-167.02182767,0.00020142,2]
[378442845,1754861494966,-246.49216065,0.00020142,2]
[378442846,1754861494990,-30.33808942,0.00020142,2]
[378442848,1754861497601,159.435451,0.00013699,2]
[378442849,1754861501613,-181.71741387,0.00020141,2]
[378442850,1754861503242,-159.76639665,0.00020141,2]
[378442860,1754861644589,2007.90296045,0.000199,2]
[378442867,1754861820764,2939.98692877,0.000199,2]
[378442868,1754861876756,344.29650448,0.00031432,30]
[378442869,1754861893655,17434.54721628,0.00019891,2]
[378442870,1754861893682,7465.45278372,0.00019891,2]
[378442873,1754862025608,2837.50524305,0.000199,2]
[378442876,1754862157525,500.6538105,0.00019912,2]
[378442880,1754862241481,2742.9217349,0.000199,2]
[378442890,1754862416398,957.59695973,0.000189,2]
[378442898,1754862437873,2652.04707512,0.000199,2]
[378442899,1754862448081,-1578.15593478,0.00020042,2]
[378442900,1754862448102,-1200.0,0.00020139,2]
[378442901,1754862448123,-1200.0,0.00020139,2]
[378442902,1754862448144,-300.0,0.00020139,2]
[378442903,1754862448165,-300.0,0.0002014,2]
[378442904,1754862448185,-300.0,0.0002014,2]
[378442905,1754862448206,-300.0,0.0002014,2]
[378442906,1754862448227,-300.0,0.0002014,2]
[378442907,1754862448248,-463.12660417,0.0002014,2]
[378442908,1754862448269,-460.0,0.0002014,2]
[378442909,1754862448290,-166.67088707,0.0002014,2]
[378442910,1754862448310,-280.54880324,0.0002014,2]
[378442911,1754862448332,-460.0,0.0002014,2]
[378442912,1754862448352,-460.0,0.0002014,2]
[378442913,1754862448373,-460.0,0.0002014,2]
[378442914,1754862448393,-460.0,0.0002014,2]
[378442915,1754862448414,-460.0,0.0002014,2]
[378442916,1754862448435,-460.0,0.0002014,2]
[378442917,1754862448460,-399.61839402,0.0002014,2]
[378442925,1754862510853,167.820876,0.00013699,2]
[378442968,1754862632411,-160.0,0.0002,3]
[378442970,1754862632421,-1380.88644295,0.00020042,2]
[378442972,1754862632431,-1200.0,0.00020139,2]
[378442974,1754862632440,-300.0,0.00020139,2]
[378442976,1754862632452,-60.38160598,0.0002014,2]
[378442978,1754862632472,-416.69428752,0.0002014,2]
[378442980,1754862632481,-460.0,0.0002014,2]
[378442982,1754862632490,-466.38071015,0.0002014,2]
[378442984,1754862632500,-460.0,0.0002014,2]
[378442986,1754862632510,-194.78714759,0.0002014,2]
[378442988,1754862632519,-460.0,0.0002014,2]
[378442990,1754862632528,-460.0,0.0002014,2]
[378442992,1754862632538,-322.71687511,0.0002014,2]
[378442994,1754862632547,-460.0,0.0002014,2]
[378442996,1754862632556,-460.0,0.0002014,2]
[378442998,1754862632566,-460.0,0.00020141,2]
[378443000,1754862632575,-462.688541,0.00020141,2]
[378443002,1754862632584,-380.45492954,0.00020141,2]
[378443004,1754862632593,-460.0,0.00020141,2]
[378443006,1754862632603,-460.0,0.00020141,2]
[378443008,1754862632612,-460.0,0.00020141,2]
[378443010,1754862632622,-460.0,0.00020141,2]
[378443012,1754862632632,-460.0,0.00020141,2]
[378443014,1754862632641,-460.0,0.00020141,2]
[378443016,1754862632651,-460.0,0.00020141,2]
[378443018,1754862632660,-460.0,0.00020141,2]
[378443020,1754862632669,-460.0,0.00020141,2]
[378443022,1754862632679,-460.0,0.00020141,2]
[378443024,1754862632688,-460.0,0.00020141,2]
[378443026,1754862632701,-497.4432277,0.00020141,2]
[378443028,1754862632710,-460.0,0.00020141,2]
[378443030,1754862632719,-460.0,0.00020141,2]
[378443032,1754862632728,-475.0,0.00020141,2]
[378443034,1754862632738,-500.0,0.00020141,2]
[378443036,1754862632747,-460.0,0.00020141,2]
[378443038,1754862632756,-470.93256344,0.00020141,2]
[378443040,1754862632765,-549.61100516,0.00020141,2]
[378443042,1754862632774,-590.14,0.00020141,2]
[378443044,1754862632783,-460.0,0.00020141,2]
[378443046,1754862632793,-460.0,0.00020141,2]
[378443048,1754862632802,-460.0,0.00020141,2]
[378443050,1754862632812,-460.0,0.00020141,2]
[378443052,1754862632821,-111.93875096,0.00020141,2]
[378443054,1754862632833,-348.06124904,0.00020141,2]
[378443056,1754862632844,-460.0,0.00020141,2]
[378443058,1754862632853,-29.55151425,0.00020141,2]
[378443272,1754862639337,2563.64550593,0.000199,2]
[378443399,1754862640499,-215.7222968,0.00020141,2]
[378444008,1754862654626,10112.35601105,0.00019832,2]
[378444009,1754862654648,29538.90810635,0.00019832,2]
[378444010,1754862662783,461.09189365,0.00019956,2]
[378444011,1754862662808,4538.90810635,0.00019956,2]
[378444014,1754862678623,5000.0,0.00019956,2]
[378444015,1754862693927,5000.0,0.00019956,2]
[378444017,1754862709809,5000.0,0.00019956,2]
[378444018,1754862717551,962.17226196,0.000189,2]
[378444019,1754862728196,2972.65438966,0.00019956,2]
[378444020,1754862729496,200.0,0.000231,29]
[378444024,1754862858461,2657.82333523,0.000199,2]
[378444027,1754863019051,641.44817464,0.000189,2]
[378444028,1754863075230,2754.01877771,0.000199,2]
[378444029,1754863179474,472.97495445,0.00019153,2]
[378444030,1754863179496,24427.02504555,0.00019153,2]
[378444032,1754863183347,369.570991,0.00027672,30]
[378444040,1754863274388,2662.21815197,0.000199,2]
[378444042,1754863320549,427.63211643,0.000189,2]
[378444043,1754863365876,150.0,0.00031433,30]
[378444044,1754863430612,175.623178,0.00019266,2]
[378444045,1754863470829,2307.50150805,0.000199,2]
[378444046,1754863470855,265.97398761,0.000199,2]
[378444048,1754863622239,1117.85043034,0.000189,2]
[378444049,1754863643126,-1200.0,0.00019999,2]
[378444050,1754863643147,-500.0,0.0002,2]
[378444051,1754863643167,-500.0,0.0002,2]
[378444052,1754863643187,-500.0,0.0002,2]
[378444053,1754863643211,-500.0,0.0002,2]
[378444054,1754863643232,-300.0,0.00020035,2]
[378444055,1754863643253,-1200.0,0.00020036,2]
[378444056,1754863643273,-300.0,0.00020037,2]
[378444057,1754863643297,-269.0,0.00020038,2]
[378444058,1754863643318,-300.0,0.00020038,2]
[378444059,1754863643339,-300.0,0.00020038,2]
[378444060,1754863643359,-300.0,0.00020038,2]
[378444061,1754863643379,-1510.00278202,0.00020039,2]
[378444062,1754863643400,-300.9403539,0.00020137,2]
[378444063,1754863643422,-500.0,0.00020137,2]
[378444064,1754863643442,-41.19388144,0.00020137,2]
[378444066,1754863667607,2698.6791399,0.000199,2]
[378444067,1754863725984,189.885893,0.00013699,2]
[378444143,1754863837266,-160.0,0.0002,3]
[378444144,1754863837277,-160.0,0.0002,3]
[378444145,1754863837287,-300.0,0.00020135,2]
[378444146,1754863837298,-1200.0,0.00020135,2]
[378444147,1754863837309,-460.0,0.00020136,2]
[378444148,1754863837318,-460.0,0.00020136,2]
[378444149,1754863837328,-252.12946711,0.00020136,2]
[378444150,1754863837338,-460.0,0.00020136,2]
[378444151,1754863837346,-460.0,0.00020136,2]
[378444152,1754863837356,-561.28894354,0.00020136,2]
[378444153,1754863837365,-460.0,0.00020136,2]
[378444154,1754863837374,-460.0,0.00020136,2]
[378444155,1754863837384,-460.0,0.00020136,2]
[378444156,1754863837393,-6011.93279955,0.00020137,2]
[378444157,1754863837402,-500.0,0.00020137,2]
[378444158,1754863837411,-500.0,0.00020137,2]
[378444160,1754863837421,-500.0,0.00020137,2]
[378444162,1754863837430,-500.0,0.00020137,2]
[378444163,1754863837439,-501.7886751,0.00020137,2]
[378444164,1754863837448,-500.0,0.00020137,2]
[378444166,1754863837458,-399.11578713,0.00020137,2]
[378444168,1754863837468,-500.0,0.00020137,2]
[378444169,1754863837479,-500.0,0.00020137,2]
[378444170,1754863837488,-500.0,0.00020137,2]
[378444171,1754863837500,-500.0,0.00020137,2]
[378444172,1754863837511,-500.0,0.00020137,2]
[378444173,1754863837522,-471.15494887,0.00020137,2]
[378444174,1754863837534,-500.0,0.00020137,2]
[378444175,1754863837544,-500.0,0.00020137,2]
[378444176,1754863837555,-500.0,0.00020137,2]
[378444177,1754863837566,-500.0,0.00020137,2]
[378444178,1754863837576,-500.0,0.00020137,2]
[378444179,1754863837586,-431.89013191,0.00020137,2]
[378444180,1754863837597,-371.36906088,0.00020137,2]
[378444181,1754863837607,-500.0,0.00020137,2]
[378444182,1754863837616,-557.83571428,0.00020137,2]
[378444183,1754863837626,-500.0,0.00020137,2]
[378444184,1754863837637,-424.02710962,0.00020137,2]
[378444185,1754863837647,-500.0,0.00020137,2]
[378444186,1754863837658,-500.0,0.00020137,2]
[378444187,1754863837668,-500.0,0.00020137,2]
[378444188,1754863837680,-500.0,0.00020137,2]
[378444189,1754863837690,-500.0,0.00020137,2]
[378444190,1754863837700,-500.0,0.00020137,2]
[378444191,1754863837710,-500.0,0.00020137,2]
[378444192,1754863837719,-500.0,0.00020137,2]
[378444193,1754863837730,-500.0,0.00020137,2]
[378444194,1754863837739,-521.86700091,0.00020137,2]
[378444195,1754863837749,-500.0,0.00020137,2]
[378444196,1754863837758,-500.0,0.00020137,2]
[378444197,1754863837768,-500.0,0.00020137,2]
[378444198,1754863837778,-500.0,0.00020137,2]
[378444199,1754863837788,-323.73966053,0.00020137,2]
[378444200,1754863837797,-500.0,0.00020137,2]
[378444201,1754863837807,-500.0,0.00020137,2]
[378444202,1754863837816,-500.0,0.00020137,2]
[378444203,1754863837826,-500.0,0.00020137,2]
[378444204,1754863837835,-500.0,0.00020137,2]
[378444205,1754863837845,-500.0,0.00020137,2]
[378444206,1754863837854,-500.0,0.00020137,2]
[378444207,1754863837863,-500.0,0.00020137,2]
[378444208,1754863837873,-321.5025811,0.00020139,2]
[378444209,1754863837883,-460.0,0.00020139,2]
[378444210,1754863837892,-460.0,0.00020139,2]
[378444211,1754863837902,-460.0,0.00020139,2]
[378444212,1754863837912,-460.0,0.00020139,2]
[378444213,1754863837922,-460.0,0.00020139,2]
[378444214,1754863837932,-460.0,0.00020139,2]
[378444215,1754863837941,-460.0,0.00020139,2]
[378444217,1754863837951,-460.0,0.00020139,2]
[378444218,1754863837960,-570.57774657,0.00020139,2]
[378444219,1754863837970,-368.78713171,0.00020139,2]
[378444220,1754863837979,-460.0,0.00020139,2]
[378444221,1754863837989,-460.0,0.00020139,2]
[378444222,1754863837998,-460.0,0.00020139,2]
[378444223,1754863838008,-460.0,0.00020139,2]
[378444224,1754863838017,-460.0,0.00020139,2]
[378444225,1754863838027,-429.66191058,0.00020139,2]
[378444226,1754863838037,-460.0,0.00020139,2]
[378444227,1754863838046,-460.0,0.00020139,2]
[378444228,1754863838055,-460.0,0.00020139,2]
[378444229,1754863838065,-460.0,0.00020139,2]
[378444230,1754863838074,-460.0,0.00020139,2]
[378444231,1754863838084,-214.72618895,0.00020139,2]
[378444232,1754863838093,-460.0,0.00020139,2]
[378444233,1754863838102,-460.0,0.00020139,2]
[378444234,1754863838112,-460.0,0.00020139,2]
[378444235,1754863838122,-466.44566688,0.00020139,2]
[378444236,1754863838132,-100.30853778,0.00020139,2]
[378444237,1754863838145,-359.69146222,0.00020139,2]
[378444238,1754863838154,-460.0,0.00020139,2]
[378444239,1754863838163,-212.92562651,0.00020139,2]
[378444240,1754863838175,-247.07437349,0.00020139,2]
[378444241,1754863838184,-460.0,0.00020139,2]
[378444242,1754863838193,-460.0,0.00020139,2]
[378444243,1754863838203,-460.0,0.00020139,2]
[378444244,1754863838212,-460.0,0.00020139,2]
[378444245,1754863838222,-460.0,0.00020139,2]
[378444246,1754863838232,-460.0,0.00020139,2]
[378444248,1754863838240,-460.0,0.00020139,2]
[378444249,1754863838249,-562.39,0.00020139,2]
[378444251,1754863838259,-460.0,0.00020139,2]
[378444253,1754863838272,-460.0,0.00020139,2]
[378444256,1754863838283,-460.0,0.00020139,2]
[378444258,1754863838292,-460.0,0.00020139,2]
[378444259,1754863838301,-460.0,0.00020139,2]
[378444261,1754863838312,-460.0,0.00020139,2]
[378444264,1754863838321,-460.0,0.00020139,2]
[378444266,1754863838331,-460.0,0.00020139,2]
[378444268,1754863838341,-460.0,0.00020139,2]
[378444270,1754863838350,-460.0,0.00020139,2]
[378444271,1754863838359,-460.0,0.00020139,2]
[378444274,1754863838368,-460.0,0.00020139,2]
[378444276,1754863838378,-460.0,0.00020139,2]
[378444277,1754863838387,-460.0,0.00020139,2]
[378444280,1754863838397,-460.0,0.00020139,2]
[378444282,1754863838407,-460.0,0.00020139,2]
[378444284,1754863838416,-460.0,0.00020139,2]
[378444286,1754863838426,-460.0,0.00020139,2]
[378444288,1754863838435,-608.55437953,0.00020139,2]
[378444290,1754863838444,-460.0,0.00020139,2]
[378444292,1754863838453,-369.21272263,0.00020139,2]
[378444294,1754863838463,-460.0,0.00020139,2]
[378444296,1754863838472,-460.0,0.00020139,2]
[378444298,1754863838483,-460.0,0.00020139,2]
[378444300,1754863838493,-460.0,0.00020139,2]
[378444302,1754863838502,-460.0,0.00020139,2]
[378444304,1754863838512,-460.0,0.0002014,2]
[378444306,1754863838522,-465.99108078,0.0002014,2]
[378444308,1754863838532,-460.0,0.0002014,2]
[378444310,1754863838540,-460.0,0.0002014,2]
[378444312,1754863838549,-460.0,0.0002014,2]
[378444314,1754863838559,-460.0,0.0002014,2]
[378444316,1754863838569,-460.0,0.0002014,2]
[378444318,1754863838578,-460.0,0.0002014,2]
[378444320,1754863838587,-467.13422123,0.0002014,2]
[378444322,1754863838596,-332.80172595,0.0002014,2]
[378444324,1754863838606,-500.0,0.0002014,2]
[378444326,1754863838615,-462.5430415,0.0002014,2]
[378444328,1754863838625,-462.35093881,0.0002014,2]
[378444330,1754863838635,-460.0,0.0002014,2]
[378444332,1754863838644,-460.0,0.0002014,2]
[378444334,1754863838653,-463.61799848,0.0002014,2]
[378444336,1754863838663,-464.49417697,0.0002014,2]
[378444338,1754863838674,-460.0,0.0002014,2]
[378444340,1754863838683,-460.0,0.0002014,2]
[378444342,1754863838692,-460.0,0.0002014,2]
[378444344,1754863838701,-601.59051158,0.0002014,2]
[378444346,1754863838711,-460.0,0.0002014,2]
[378444348,1754863838721,-463.70028505,0.0002014,2]
[378444350,1754863838731,-469.46082296,0.0002014,2]
[378444352,1754863838741,-460.0,0.0002014,2]
[378444354,1754863838751,-460.0,0.0002014,2]
[378444356,1754863838760,-460.0,0.0002014,2]
[378444358,1754863838770,-460.0,0.0002014,2]
[378444360,1754863838779,-460.0,0.0002014,2]
[378444362,1754863838788,-460.0,0.0002014,2]
[378444364,1754863838798,-460.0,0.0002014,2]
[378444366,1754863838807,-460.0,0.0002014,2]
[378444368,1754863838816,-460.0,0.0002014,2]
[378444370,1754863838826,-468.70343659,0.0002014,2]